Cogmind - Beta 10.2 @@@ ROGUE MODE // 2022.02.27 @ 04:33:11 Player: Puzzlebark Result: Destroyed by G-47 Trooper with Particle Gun Performance ------------- Evolutions (0) 0 Regions Visited (4) 800 Robots Destroyed (27) 135 Value Destroyed (463) 463 Prototype IDs (0) 0 Alien Tech Used (0) 0 Bonus (0) 0 TOTAL SCORE: 1398 Bonus ------- None Cogmind --------- Core Integrity 0/250 Matter 300/300 Energy 45/125 System Corruption 0% Temperature Cool (121) Movement Treading (185) Ox1 Location -9/Mines Parts ------- > --- POWER (1) -------- Light Ion Engine > --- PROPULSION (2) --- Light Treads Armored Treads > --- UTILITY (2) ------ Large Storage Unit Large Storage Unit > --- WEAPON (2) ------- Light EM Pulse Cannon Autogun > --- INVENTORY (16) --- Wheel Wheel Flight Unit Flight Unit Flight Unit Flight Unit Flight Unit Improved Heat Sink Sensor Array Experimental Sensor Array Light Armor Plating Hacking Suite Heavy Particle Cannon Peak State ------------ > --- POWER ------------ Light Ion Engine > --- PROPULSION ------- Light Treads Armored Treads > --- UTILITY ---------- Large Storage Unit Large Storage Unit > --- WEAPON ----------- Light EM Pulse Cannon Autogun > --- INVENTORY -------- Light Treads Wheel Wheel Flight Unit Flight Unit Flight Unit Flight Unit Flight Unit Improved Heat Sink Sensor Array Experimental Sensor Array Light Armor Plating Hacking Suite Heavy Particle Cannon [Rating: 13] Favorites ----------- Power Light Ion Engine Engine Light Ion Engine Propulsion Light Treads Treads Light Treads Utility Large Storage Unit Storage Large Storage Unit Weapon EM Pulse Gun Energy Gun EM Pulse Gun Energy Cannon Beam Cannon Ballistic Gun Assault Rifle Build | -11 -10 -10 -10 -9 ------- Run | Scr Mat Min Exi Min Slots Evolved . | . . . . . Power . | . . . . . Propulsion . | . . . . . Utility . | . . . . . Weapon . | . . . . . Parts Attached 21 | 6 9 3 . 3 Power 3 | 1 1 1 . . Engine 3 | 1 1 1 . . Core . | . . . . . Reactor . | . . . . . Propulsion 7 | 2 3 1 . 1 Treads 7 | 2 3 1 . 1 Leg . | . . . . . Wheel . | . . . . . Hover . | . . . . . Flight . | . . . . . Utility 3 | 1 2 . . . Device . | . . . . . Storage 3 | 1 2 . . . Processor . | . . . . . Hackware . | . . . . . Protection . | . . . . . Artifact . | . . . . . Weapon 8 | 2 3 1 . 2 Energy Gun 3 | 1 1 1 . . Energy Cannon 2 | . 1 . . 1 Ballistic Gun 3 | 1 1 . . 1 Ballistic Cannon . | . . . . . Launcher . | . . . . . Special Weapon . | . . . . . Impact Weapon . | . . . . . Slashing Weapon . | . . . . . Piercing Weapon . | . . . . . Special Melee Weapon . | . . . . . Unidentified Prototypes . | . . . . . Parts Lost 5 | . 1 3 . 1 Power 1 | . . 1 . . Propulsion 1 | . . . . 1 Utility . | . . . . . Weapon 3 | . 1 2 . . Highest Loss Streak 3 | . 1 3 . 1 Average Slot Usage (%) 91 | . 96 85 85 95 Engine 13 | . 13 13 14 14 Treads 27 | . 26 28 28 28 Storage 27 | . 26 28 28 28 Energy Gun 11 | . 10 14 14 4 Energy Cannon 5 | . 8 . . 9 Ballistic Gun 5 | . 9 . . 9 Naked Turns . | . . . . . Heaviest Build 42 | 13 42 37 37 42 Greatest Support 40 | 40 40 40 40 40 Greatest Overweight (x) 1 | 1 1 . . 1 Average Overweight (x) . | . . . . . Largest Inventory Capacity 16 | 6 16 16 16 16 Average Capacity 15 | 5 14 16 16 16 Most Carried 16 | 4 16 14 14 14 Average Carried 11 | 3 9 12 14 13 Final Capacity 16 | 6 16 16 16 16 Final Carried 14 | 4 13 14 14 13 Class Distribution -------------------- 100% | Mutant Dominant Class ---------------- Mutant | -10/Materials Mutant | -10/Mines Mutant | -10/Exiles Mutant | -9/Mines Resources | -11 -10 -10 -10 -9 ----------- Run | Scr Mat Min Exi Min Matter Collected 594 | 196 311 30 . 57 Remotely . | . . . . . Salvage Created 752 | . 532 42 . 178 Parts 47 | . 35 4 . 8 Haulers Intercepted 2 | . 2 . . . Recyclers Shooed . | . . . . . Parts Field Recycled . | . . . . . Retrieved Matter . | . . . . . Parts Self-Destructed . | . . . . . Prevented . | . . . . . Kills | -11 -10 -10 -10 -9 ------- Run | Scr Mat Min Exi Min Combat Hostiles Destroyed 20 | . 11 3 . 6 Guns 15 | . 11 . . 4 Cannons 3 | . . 2 . 1 AOE 1 | . . 1 . . Classes Destroyed 6 | . 6 . . . Worker 1 | . 1 . . . Hauler 2 | . 2 . . . Operator 1 | . 1 . . . Watcher 3 | . 3 . . . Swarmer 13 | . 6 3 . 4 Grunt 7 | . 5 . . 2 Best Kill Streak 4 | . 4 3 . 4 Combat Bots Only 4 | . 3 3 . 4 Max Kills in Single Turn 1 | . 1 1 . 1 Gunslinging . | . . . . . Exploded 1 | . . 1 . . Melee . | . . . . . Uniques/NPCs Destroyed . | . . . . . Combat | -11 -10 -10 -10 -9 -------- Run | Scr Mat Min Exi Min Damage Taken 1376 | . 621 265 . 490 Core 257 | . 154 29 . 74 Absorbed by Shields . | . . . . . Core Remaining (%) 100 | 100 . . . . Volleys Fired 103 | . 70 14 . 19 Largest 2 | . 2 1 . 2 Hottest 80 | . 80 60 . 79 Shots Fired 147 | . 106 14 . 27 Gun 120 | . 103 3 . 14 Cannon 27 | . 3 11 . 13 Launcher . | . . . . . Special . | . . . . . Kinetic 62 | . 54 . . 8 Thermal 32 | . 21 11 . . Explosive . | . . . . . Electromagnetic 53 | . 31 3 . 19 Robot Hit Streak 10 | . 10 3 . 6 Robot Miss Streak 3 | . 3 2 . 3 Penetration Max . | . . . . . Secondary Targets 2 | . 2 . . . Max Gunslinging Chain 1 | . 1 . . . Shots Hit Robots 97 | . 74 8 . 15 Core Hits 35 | . 25 3 . 7 Critical Hits . | . . . . . Critical Kills . | . . . . . Critical Parts Destroyed . | . . . . . Melee Attacks . | . . . . . Impact . | . . . . . Slashing . | . . . . . Piercing . | . . . . . Sneak Attacks . | . . . . . Combat Hostiles . | . . . . . Follow-up Attacks . | . . . . . Damage Inflicted 1442 | . 984 175 . 283 Guns 1050 | . 932 22 . 96 Cannons 362 | . 52 123 . 187 Explosions 30 | . . 30 . . Melee . | . . . . . Ramming . | . . . . . Kinetic 429 | . 379 . . 50 Thermal 381 | . 228 153 . . Explosive . | . . . . . Electromagnetic 632 | . 377 22 . 233 Impact . | . . . . . Slashing . | . . . . . Piercing . | . . . . . Highest Corruption . | . . . . . Average Corruption . | . . . . . Corruption Purged . | . . . . . Overload Shots . | . . . . . Overflow Damage . | . . . . . Projectiles . | . . . . . Explosions . | . . . . . Melee . | . . . . . Knockbacks . | . . . . . Impact . | . . . . . Kinetic . | . . . . . Secondary . | . . . . . Self-Inflicted Damage 40 | . . 40 . . Shots 1 | . . 1 . . Rammed . | . . . . . Targets Rammed . | . . . . . Kicked . | . . . . . Crushed . | . . . . . Highest Temperature 289 | . 129 150 . 289 Average Temperature 79 | . 40 91 . 138 Received Heat Transfer 411 | . 189 . . 222 Effects 3 | . . . . 3 Energy Bleed 1 | . . . . 1 Interference 2 | . . . . 2 Siege Activations . | . . . . . Robots Corrupted 2 | . 1 . . 1 Combat Hostiles 1 | . . . . 1 Parts Fried 5 | . 3 . . 2 Impact Corruptions . | . . . . . Robots Melted . | . . . . . Combat Hostiles . | . . . . . Parts Melted 4 | . 1 3 . . Heat Transferred 938 | . 629 309 . . Parts Sabotaged . | . . . . . Parts Stolen . | . . . . . Parts Stripped . | . . . . . Power Chain Reactions 1 | . . 1 . . Missiles Intercepted . | . . . . . Alert | -11 -10 -10 -10 -9 ------- Run | Scr Mat Min Exi Min Peak Influence 180 | . 180 73 . 150 Initial 33 | . . 33 . . Average 58 | . 56 38 . 116 Maximum Alert Level . | . . . . . Low Security (%) 100 | 100 100 100 . 100 Level 1 . | . . . . . Level 2 . | . . . . . Level 3 . | . . . . . Level 4 . | . . . . . Level 5 . | . . . . . High Security . | . . . . . Max Security . | . . . . . Squads Dispatched 3 | . 2 1 . . Investigation 2 | . 1 1 . . Extermination . | . . . . . Reinforcement 1 | . 1 . . . Assault . | . . . . . Garrison . | . . . . . Intercept . | . . . . . Construction Impeded . | . . . . . Haulers Reinforced . | . . . . . Stealth | -11 -10 -10 -10 -9 --------- Run | Scr Mat Min Exi Min Distress Signals 2 | . 2 . . . Communications Jammed . | . . . . . Distress Signals . | . . . . . Times Spotted 33 | . 21 3 . 9 Peak Tracking Total 4 | . 4 3 . 4 Tactical Retreats 1 | . . . . 1 Traps | -11 -10 -10 -10 -9 ------- Run | Scr Mat Min Exi Min Traps Triggered 1 | . 1 . . . Indirectly . | . . . . . Trap Hack Attempts . | . . . . . Triggered . | . . . . . Disarmed . | . . . . . Reprogrammed . | . . . . . Reused . | . . . . . Traps Extracted . | . . . . . Installed . | . . . . . Triggered . | . . . . . Machines | -11 -10 -10 -10 -9 ---------- Run | Scr Mat Min Exi Min Machines Disabled . | . . . . . Max in Single Turn . | . . . . . Machines Sabotaged . | . . . . . Garrisons Compromised . | . . . . . Overloaded Fab Kills . | . . . . . Fab Network Shutdowns . | . . . . . Hacking | -11 -10 -10 -10 -9 --------- Run | Scr Mat Min Exi Min Machines Accessed 13 | . 7 1 4 1 Terminals 6 | . 5 . . 1 Fabricators . | . . . . . Repair Stations 1 | . 1 . . . Recycling Units 1 | . 1 . . . Scanalyzers . | . . . . . Garrison Access . | . . . . . Total Hacks 38 | . 30 1 4 3 Successful 26 | . 19 1 4 2 Failed 12 | . 11 . . 1 Catastrophic 1 | . 1 . . . Database Lockouts . | . . . . . Manual 19 | . 17 . . 2 Terminals 28 | . 25 . . 3 Fabricators . | . . . . . Repair Stations 4 | . 4 . . . Recycling Units 1 | . 1 . . . Scanalyzers . | . . . . . Garrison Access . | . . . . . Terminal Hacks 14 | . 7 1 4 2 Record 4 | . . . 4 . Open Door 1 | . . 1 . . Terminal Index 1 | . 1 . . . Alert Level 1 | . 1 . . . Locate Traps 3 | . 3 . . . Patrol Status 1 | . . . . 1 Recall Investigation 1 | . 1 . . . Zone Layout 2 | . 1 . . 1 Fabricator Hacks . | . . . . . Repair Station Hacks 4 | . 4 . . . Scan Component 2 | . 2 . . . Repair 2 | . 2 . . . Recycling Unit Hacks 1 | . 1 . . . Report Inventory 1 | . 1 . . . Scanalyzer . | . . . . . Garrison Access Hacks . | . . . . . Unauthorized Hacks 7 | . 7 . . . Terminals 7 | . 7 . . . Track 3 | . 3 . . . Botnet 3 | . 3 . . . Operators 1 | . 1 . . . Fabricators . | . . . . . Repair Stations . | . . . . . Recycling Units . | . . . . . Scanalyzers . | . . . . . Garrison Access . | . . . . . Data Cores Recovered . | . . . . . Used . | . . . . . Hacking Detections 7 | . 6 . . 1 Full Trace Events . | . . . . . Feedback Events . | . . . . . Feedback Blocked . | . . . . . Robot Schematics Acquired . | . . . . . Robots Built . | . . . . . Matter . | . . . . . Time . | . . . . . Total Robot Build Rating . | . . . . . Part Schematics Acquired . | . . . . . Parts Built . | . . . . . Matter . | . . . . . Time . | . . . . . Total Part Build Rating . | . . . . . Parts Repaired 2 | . 2 . . . Time 52 | . 52 . . . Parts Recycled . | . . . . . Recycled Matter . | . . . . . Retrieved Matter . | . . . . . Retrieved Components . | . . . . . Parts Scanalyzed . | . . . . . Part Schematics Acquired . | . . . . . Parts Damaged . | . . . . . Bothacking | -11 -10 -10 -10 -9 ------------ Run | Scr Mat Min Exi Min Used RIF Installer . | . . . . . Robots Hacked . | . . . . . Non-combat . | . . . . . Combat . | . . . . . Robot Hacks Applied . | . . . . . Relay Couplers Released . | . . . . . Robots Rewired . | . . . . . Allies Hacked . | . . . . . Hacks Repelled . | . . . . . Allies | -11 -10 -10 -10 -9 -------- Run | Scr Mat Min Exi Min Total Allies . | . . . . . Largest Group . | . . . . . Highest-Rated Group . | . . . . . Highest-Rated Ally . | . . . . . Total Orders . | . . . . . Ally Attacks . | . . . . . Total Damage . | . . . . . Kills . | . . . . . Allies Corrupted . | . . . . . Allies Melted . | . . . . . Intel | -11 -10 -10 -10 -9 ------- Run | Scr Mat Min Exi Min Robot Analysis Total . | . . . . . Derelict Logs Recovered 3 | . . 2 . 1 Drone Launches . | . . . . . Drone Recoveries . | . . . . . Exploration | -11 -10 -10 -10 -9 ------------- Run | Scr Mat Min Exi Min Turns Passed 3405 | 93 1496 730 707 379 Spaces Moved 1786 | 71 684 426 429 176 Core 33 | 33 . . . . Treads 1753 | 38 684 426 429 176 Legs . | . . . . . Wheels . | . . . . . Hover . | . . . . . Flight . | . . . . . Fastest Speed 50 | 50 160 160 165 165 Average Speed 168 | 111 177 163 165 177 Slowest Speed 185 | 160 180 165 165 185 Overloaded Moves . | . . . . . Propulsion Burnouts . | . . . . . Robots Hopped . | . . . . . Cave-ins Triggered . | . . . . . Exploration Rate (%) 59 | 5 92 80 91 30 Regions Visited 4 Branch Regions 3 Pre-discovered Areas 1 | . . . . 1 Known Exits Taken . | . . . . . Unknown Exits Taken 4 | 1 1 1 1 . Scrap Searched 3 | . . 1 . 2 Spaces Dug . | . . . . . Terrain Destroyed 3 | . . 3 . . Melee . | . . . . . Projectile . | . . . . . AOE 3 | . . 3 . . Terrain Rammed . | . . . . . Walls Destroyed . | . . . . . Machines Disabled . | . . . . . Actions | -11 -10 -10 -10 -9 --------- Run | Scr Mat Min Exi Min Total 2036 | 83 864 445 428 216 Wait 91 | . 74 . . 17 Move 1782 | 70 683 425 428 176 Hop . | . . . . . Pick Up 26 | 7 16 3 . . Fast Attach 8 | 3 3 . . 2 Attach 10 | 3 4 2 . 1 Detach 5 | . 5 . . . Swap 3 | . 2 1 . . Drop 8 | . 7 . . 1 Fire 103 | . 70 14 . 19 Melee . | . . . . . Ram . | . . . . . Kick . | . . . . . Crush . | . . . . . Escape Stasis . | . . . . . Rewire . | . . . . . Trap . | . . . . . Miscellaneous . | . . . . . Route ------- -11/Scrapyard -10/Materials (discovered 5 exits: [*Mat x3] / *Min x2) -10/Mines (discovered 2 exits: [*Mat] / *Exi) -10/Exiles (discovered 2 exits: *Min x2) -9/Mines History --------- Turn | Location | Event 6 | -11/Scrapyard | Discovered new exit (range 14) 94 | -11/Scrapyard | Entered Materials 318 | -10/Materials | Build established: Mutant 338 | -10/Materials | Discovered new exit (range 15) 543 | -10/Materials | Core integrity fell below 50% 592 | -10/Materials | Discovered new exit (range 16) 651 | -10/Materials | Repaired Lgt. Treads 679 | -10/Materials | Repaired Lgt. Treads 865 | -10/Materials | Discovered new exit (range 16) 1069 | -10/Materials | Discovered new exit (range 10) 1500 | -10/Materials | Discovered new exit (range 15) 1590 | -10/Materials | Entered Mines 1647 | -10/Mines | Lost 3 parts (1p2w) 1779 | -10/Mines | Learned Materials emergency access door positions 1824 | -10/Mines | Learned Materials security intel 1829 | -10/Mines | Met a Derelict shopkeep closing up shop 1898 | -10/Mines | Discovered new exit (range 11) 1964 | -10/Mines | Found a hidden stash of uninstalled traps 2163 | -10/Mines | Deemed a non-threat by the Exiles lab entrance 2163 | -10/Mines | Discovered new exit (range 5) 2221 | -10/Mines | Found a damaged Exp. Sensor Array with a note attached 2225 | -10/Mines | Found Prototype Device 2320 | -10/Mines | Entered Exiles 2320 | -10/Exiles | Found Exiles lab abandoned 2347 | -10/Exiles | Discovered new exit (range 15) 3005 | -10/Exiles | Discovered new exit (range 12) 3027 | -10/Exiles | Entered Mines 3110 | -9/Mines | Learned location of Storage (-8) 3177 | -9/Mines | Core integrity fell below 20% 3406 | -9/Mines | Destroyed by G-47 Trooper with Particle Gun Last Messages --------------- World map updated: -8/Storage. 03137_ Searching scrap... 03137_ Found Hvy. Hammer. 03137_ Found Lgt. EM Pulse Cannon. 03137_ Found Autogun. 03137_ Found Mining Laser. 03137_ Found 31 Matter. 03143_ Acquired Autogun. 03148_ Dropped EM Pulse Gun. 03149_ Acquired Lgt. EM Pulse Cannon. 03158_ R-06 Scavenger collects EM Pulse Gun. 03186_ Lgt. Treads destroyed. 03187_ G-47 Trooper system terminally corrupted. 03187_ Particle Gun fried. 03187_ Aluminum Leg fried. 03192_ G-34 Mercenary destroyed. 03193_ Overheating: Energy bleed (-1). 03194_ Overheating: System interference. 03194_ Autogun temporarily disabled. 03212_ Acquired 57 matter. Map ----- +----------------------------------------------------+ | | | ?????????????????????????????????????????? | | ?????????????????????????????????????????? | | ?????????????????????????????????????????? | | ??????????????????????????????#########??? | | ??????????????????????????????# #??? | | ??????###########?????????????# #??? | | ??????# #?????????????# """#??? | | ??????#= #?????????????# """#??? | | ??????#%= #?????????????# """#??? | | ??????#%[ """ #####?????????# #??? | | ?????##*%= """ #?????????# #??? | | ?????#T%* """ ### #?????????# #??? | | ?????## #?# ######????### #####??? | | ??????###########?# #??????# #???? | | ??????????????????###### #??????# ## #???? | | ???????????####????????# #??????# ## ###?? | | ??????????## ####?????# #??????# ## ##? | | ?????????## ##????# ######## # #? | | ???????### #????# #? | | ??????## g #????###### ###### #? | | ??????# g #??????????# #???## #? | | ??????# g #???????????#%#???# #? | | ??????# ### ##??????????#!#??# #? | | ??????# ##?## ############ #??# ##? | | ?????## #???# @ t r #??## ##?? | | ???### #???## #???#####??? | | ??## ##????############## #??????????? | | ??# #??????????????????# #??????????? | | ??# #?????????????????## #??????????? | | ??## #?????????????????# #??????????? | | ???## #????????????????# #??????????? | | ????## ??????????????## ##??????????? | | ?????# ?????????#### %%#???????????? | | ?????# #??????## #???????????? | | ?????# ##??????# / ######??????? | | ?????# #???????#% #? | | ?????# ##???????#| # #? | | ?????# ##????????## #### #########??? | | ????? ## #??????????####??? #??????????? | | ????? ?? #????????????????? #??????????? | | ????? ?? #????????????????? #??????????? | | ????? ?? ????????????????? #??????????? | | ???????? ????????????????? ??????????? | | ???????? ??????????????????##??????????? | | ?????????????????????????????????????????? | | ?????????????????????????????????????????? | | ?????????????????????????????????????????? | | ?????????????????????????????????????????? | | ?????????????????????????????????????????? | +----------------------------------------------------+ Best States ------------- Heat Dissipation 25 Energy Generation 10 Energy Capacity 250 Matter Stores 300 Matter Capacity 300 Sight Range 16 Terrain Scan Density 10 Evasion (%) 50 Recoil Reduction 2 Item Schematics ----------------- None Robot Schematics ------------------ None Fabricated ------------ Nothing Alien Tech Used ----------------- None Achievements -------------- None Challenges ------------ None Game ------ Seed MyomerBeamScreen Manual? 0 Play Time 00:25:52 Cumulative 183.1 hours Start 2022.02.27 @ 03:58:23 End 2022.02.27 @ 04:33:11 Sessions 1 Manual Loads 0 Difficulty Rogue Special Mode None Game No. 171 Rogue 110 Adventurer 61 Explorer 0 Win Type - Total 9 Types 7/0/2/0/0/0/0/0/0 Lore% 49 Gallery% 76 Achievement% 59 Wizard Run 0 Options --------- ASCII 0 Keyboard 0 Movement Mouse Keybinds 0 Fullscreen 2 Font 24/Smallcaps Map View 76x50 Tactical HUD 1 Map Filters NONE Filters NONE Steam 1 RUN: 7e290064-fc21-411f-9952-753230e7f92e